fUST/lending_fUST_20240307
["ID","MTS","AMOUNT","RATE_DAILY","PERIOD"]
[317475925,1709820648992,-246.09308418,0.00024596,2]
[317475927,1709820649006,-1074.08954354,0.000246,3]
[317478384,1709821231993,20000.0,0.0002488,50]
[317478516,1709821507011,204.71208925,0.0002,20]
[317478517,1709821516640,10000.0,0.0002518,90]
[317478518,1709821585443,191.2874921,0.00017368,2]
[317478519,1709821595398,191.2874921,0.00017369,2]
[317478520,1709821653255,117.4250158,0.00017369,2]
[317478565,1709821832321,-155.03255684,0.00017362,2]
[317478567,1709821832331,-155.03255684,0.00017363,2]
[317478569,1709821832340,-155.03255684,0.00017364,2]
[317478571,1709821832350,-37.60754104,0.00017369,2]
[317478573,1709821832359,-686.5262704,0.00017369,2]
[317478575,1709821832368,-332.48966665,0.00019428,2]
[317478577,1709821832378,-167.353421,0.00019429,2]
[317478579,1709821832388,-195.537698,0.0001971,2]
[317478581,1709821832397,-4512.91965886,0.0002032,2]
[317478583,1709821832408,-4751.54910424,0.0002032,2]
[317478585,1709821832420,-400.78784228,0.0002032,2]
[317478596,1709821832519,-365.28955153,0.0002032,2]
[317478598,1709821832532,-2561.08695129,0.0002032,2]
[317478605,1709821832579,-1138.31761587,0.0002032,2]
[317478607,1709821832589,-957.12086436,0.0002032,2]
[317478856,1709821838687,-155.03255684,0.00017361,2]
[317478857,1709821838698,-694.96744316,0.0002032,2]
[317478988,1709821840625,-400.75182869,0.0002032,2]
[317479252,1709821843662,-155.03255684,0.00017369,2]
[317479254,1709821843671,-175.88650572,0.0002032,2]
[317479259,1709821843708,-1530.69666356,0.0002032,2]
[317479539,1709821846444,-2468.4066094,0.0002032,2]
[317479541,1709821846461,-1577.8,0.0002032,2]
[317479550,1709821846539,-5924.32080918,0.0002032,2]
[317479553,1709821846548,-11052.2721672,0.00020321,2]
[317479556,1709821846558,-250.0,0.00020367,2]
[317479558,1709821846567,-186.69412194,0.00021898,2]
[317479562,1709821846578,-309.360372,0.00021918,2]
[317479564,1709821846590,-1668.03514243,0.00022363,2]
[317479567,1709821846599,-1086.06256059,0.00022364,2]
[317479570,1709821846611,-1601.04554161,0.00022464,3]
[317479573,1709821846621,-682.17937092,0.00022479,3]
[317479576,1709821846630,-11057.46227547,0.00022479,3]
[317479578,1709821846640,-12858.01781016,0.000228,6]
[317481398,1709823035476,-155.00930056,0.0001716,2]
[317481400,1709823035486,-538.93657172,0.00017161,2]
[317481402,1709823035495,-60.28086776,0.00017161,2]
[317481404,1709823035507,-13570.6,0.00017161,2]
[317481410,1709823035555,-99.06985631,0.00017161,2]
[317481412,1709823035564,-401.2321432,0.00017162,2]
[317481414,1709823035573,-2114.14349051,0.00017162,2]
[317481415,1709823035583,-290.38682753,0.00017162,2]
[317481418,1709823035592,-528.39304165,0.00017163,2]
[317481420,1709823035602,-380.288984,0.00017175,2]
[317481422,1709823035611,-300.0,0.00017205,2]
[317481425,1709823035620,-714.5415476,0.00017284,2]
[317481428,1709823035629,-3131.34557781,0.00017355,2]
[317481432,1709823035641,-6868.40112008,0.00017355,2]
[317481435,1709823035651,-2623.83591318,0.00017366,2]
[317481438,1709823035660,-688.0152118,0.00017682,2]
[317481441,1709823035669,-270.4328404,0.00017806,2]
[317481444,1709823035679,-332.48966665,0.00019177,2]
[317481446,1709823035694,-168.689516,0.00019178,2]
[317481449,1709823035704,-199.389145,0.00019992,2]
[317481452,1709823035714,-8481.01144675,0.0002,2]
[317481455,1709823035724,-515.02148632,0.0002032,2]
[317481458,1709823035733,-224.37984606,0.0002032,2]
[317481461,1709823035742,-1360.84592742,0.000207,2]
[317481463,1709823035752,-3940.26624756,0.00021,2]
[317481465,1709823035762,-875.30218491,0.0002217,2]
[317481467,1709823035772,-398.5848023,0.00022478,2]
[317481469,1709823035781,-44246.5723222,0.00022479,3]
[317481471,1709823035791,-7731.0936643,0.00022479,3]
[317481473,1709823035800,-8364.70604344,0.00022479,3]
[317481475,1709823035809,-3080.21804117,0.00022479,3]
[317481477,1709823035819,-5188.19919716,0.000228,6]
[317481479,1709823035828,-155.03255684,0.000228,2]
[317481481,1709823035839,-155.03255684,0.000228,2]
[317481483,1709823035852,-686.5262704,0.000228,2]
[317481485,1709823035862,-155.00310006,0.000228,2]
[317481487,1709823035871,-300.0,0.00023,10]
[317481489,1709823035880,-184.20532805,0.00023,2]
[317481491,1709823035890,-200.4447332,0.00023123,2]
[317481493,1709823035900,-500.0,0.00023237,2]
[317481495,1709823035909,-500.0,0.00023237,2]
[317481497,1709823035919,-500.0,0.00023237,2]
[317481499,1709823035928,-500.0,0.00023237,2]
[317481501,1709823035939,-500.0,0.00023237,2]
[317481503,1709823035949,-500.0,0.00023237,2]
[317481505,1709823035958,-500.0,0.00023237,2]
[317481507,1709823035968,-500.0,0.00023237,2]
[317481509,1709823035978,-224.19180789,0.00023237,2]
[317481511,1709823035987,-500.0,0.00023237,2]
[317481513,1709823035996,-500.0,0.00023237,2]
[317481515,1709823036006,-214.78801132,0.00023237,2]
[317481517,1709823036016,-499.99999999,0.00023237,2]
[317481519,1709823036026,-500.0,0.00023237,2]
[317481521,1709823036035,-221.94195979,0.00023237,2]
[317481523,1709823036046,-500.0,0.00023237,2]
[317481524,1709823036056,-848.89560152,0.00023238,3]
[317481526,1709823036065,-445.41868045,0.00023238,3]
[317481528,1709823036075,-720.06339808,0.00023238,3]
[317481530,1709823036085,-199.36927544,0.00023238,3]
[317481532,1709823036095,-280.94702144,0.00023238,3]
[317481534,1709823036105,-478.01743479,0.00023238,3]
[317481536,1709823036115,-632.55392283,0.00023238,3]
[317481538,1709823036125,-3301.96881008,0.00023238,3]
[317481540,1709823036134,-1000.0,0.00023238,7]
[317481542,1709823036143,-1000.0,0.00023238,7]
[317481544,1709823036152,-2300.92904022,0.00023238,3]
[317481546,1709823036162,-1000.0,0.00023238,7]
[317481548,1709823036171,-5451.61514064,0.00023238,2]
[317481550,1709823036181,-808.44057888,0.00023238,3]
[317481552,1709823036193,-155.01860736,0.00023238,3]
[317481553,1709823036203,-618.37760833,0.00023238,3]
[317481555,1709823036213,-18446.24375919,0.00023238,2]
[317481557,1709823036223,-34115.61409723,0.00023238,3]
[317481559,1709823036234,-4572.82573772,0.00023238,2]
[317481561,1709823036244,-994.63870867,0.00023238,2]
[317481563,1709823036253,-165.12327744,0.00023238,2]
[317481565,1709823036263,-500.0,0.00023287,2]
[317481567,1709823036273,-500.0,0.00023342,2]
[317481569,1709823036283,-500.0,0.00023397,2]
[317481571,1709823036292,-500.0,0.00023452,2]
[317481573,1709823036302,-500.0,0.00023506,2]
[317481575,1709823036311,-500.0,0.00023561,2]
[317481577,1709823036320,-500.0,0.00023616,2]
[317481579,1709823036330,-500.0,0.00023671,2]
[317481581,1709823036340,-640.97833346,0.00023717,2]
[317481583,1709823036349,-500.0,0.00023726,2]
[317481586,1709823036361,-500.0,0.0002378,2]
[317481587,1709823036370,-621.15242612,0.00023787,2]
[317481589,1709823036380,-11011.39780918,0.000238,14]
[317481591,1709823036390,-500.0,0.00023835,2]
[317481593,1709823036400,-1500.0,0.00023857,2]
[317481596,1709823036410,-1500.0,0.00023878,2]
[317481598,1709823036419,-500.0,0.0002389,2]
[317481599,1709823036429,-1500.0,0.00023898,2]
[317481601,1709823036442,-1500.0,0.00023918,2]
[317481604,1709823036453,-1500.0,0.00023938,2]
[317481605,1709823036463,-511.94362706,0.00023945,2]
[317481608,1709823036474,-306.0,0.00023945,2]
[317481610,1709823036484,-306.0,0.00023945,2]
[317481620,1709823036577,-306.2467424,0.00023945,2]
[317481622,1709823036586,-153.0,0.00023945,2]
[317481624,1709823036595,-153.0,0.00023945,2]
[317481626,1709823036605,-153.0,0.00023945,2]
[317481628,1709823036614,-153.0,0.00023945,2]
[317481630,1709823036624,-153.0,0.00023945,2]
[317481632,1709823036633,-153.0,0.00023945,2]
[317481634,1709823036643,-1500.0,0.00023959,2]
[317481636,1709823036652,-1500.0,0.00023979,2]
[317481638,1709823036662,-1500.0,0.00023999,2]
[317481640,1709823036672,-10000.0,0.00024,2]
[317481642,1709823036681,-15208.95607937,0.00024,2]
[317481644,1709823036694,-1587.12688018,0.00024,2]
[317481646,1709823036704,-2000.0,0.00024,2]
[317481648,1709823036713,-400.9052592,0.00024008,2]
[317481649,1709823036722,-1540.06688072,0.00024009,2]
[317481651,1709823036732,-2000.0,0.0002401,2]
[317481653,1709823036741,-2000.0,0.0002402,2]
[317481655,1709823036750,-1500.0,0.0002402,2]
[317481657,1709823036759,-2000.0,0.0002403,2]
[317481659,1709823036768,-2000.0,0.0002404,2]
[317481661,1709823036778,-1500.0,0.0002404,2]
[317481663,1709823036787,-2000.0,0.0002405,2]
[317481665,1709823036796,-2000.0,0.0002406,2]
[317481667,1709823036805,-1500.0,0.0002406,2]
[317481669,1709823036814,-2000.0,0.0002407,2]
[317481671,1709823036824,-2000.0,0.0002408,2]
[317481673,1709823036833,-1500.0,0.0002408,2]
[317481675,1709823036844,-2000.0,0.0002409,2]
[317481677,1709823036853,-2000.0,0.000241,2]
[317481679,1709823036862,-1500.0,0.00024101,2]
[317481681,1709823036874,-2000.0,0.0002411,2]
[317481683,1709823036883,-2000.0,0.0002412,2]
[317481685,1709823036892,-1500.0,0.00024121,2]
[317481687,1709823036902,-2000.0,0.0002413,2]
[317481689,1709823036911,-2000.0,0.0002414,2]
[317481691,1709823036921,-1500.0,0.00024141,2]
[317481693,1709823036931,-2000.0,0.0002415,2]
[317481694,1709823036944,-2000.0,0.0002416,2]
[317481696,1709823036954,-1500.0,0.00024161,2]
[317481698,1709823036964,-2000.0,0.0002417,2]
[317481700,1709823036974,-2000.0,0.0002418,2]
[317481702,1709823036983,-1500.0,0.00024182,2]
[317481704,1709823036993,-2943.708138,0.0002419,2]
[317481706,1709823037002,-200.0,0.000242,2]
[317481708,1709823037012,-1500.0,0.00024202,2]
[317481710,1709823037021,-1500.0,0.00024222,2]
[317481712,1709823037030,-1500.0,0.00024243,2]
[317481714,1709823037039,-463.5745322,0.0002425,2]
[317481716,1709823037049,-1500.0,0.00024263,2]
[317481718,1709823037058,-1000.0,0.00024271,7]
[317481720,1709823037067,-1000.0,0.00024271,7]
[317481722,1709823037076,-1000.0,0.00024271,7]
[317481724,1709823037086,-1000.0,0.00024271,7]
[317481726,1709823037095,-1000.0,0.00024271,7]
[317481728,1709823037104,-1000.0,0.00024271,7]
[317481730,1709823037113,-1000.0,0.00024271,7]
[317481732,1709823037122,-1000.0,0.00024271,7]
[317481734,1709823037132,-1500.0,0.00024283,2]
[317481736,1709823037141,-581.0,0.000243,2]
[317481738,1709823037150,-2469.888006,0.00024303,2]
[317481740,1709823037159,-500.0,0.000245,7]
[317481742,1709823037168,-500.0,0.000245,7]
[317481744,1709823037177,-545.93,0.000245,7]
[317481746,1709823037190,-300.0,0.000245,11]
[317481748,1709823037199,-1132.02818731,0.00024557,2]
[317481750,1709823037208,-3563.99,0.00024559,2]
[317481752,1709823037218,-3623.04,0.00024559,2]
[317481754,1709823037227,-784.53,0.00024563,2]
[317481756,1709823037236,-1132.02818726,0.0002457,2]
[317481758,1709823037245,-5465.11,0.00024571,2]
[317481760,1709823037254,-5030.77,0.00024577,2]
[317481761,1709823037263,-12500.0,0.00024581,2]
[317481763,1709823037273,-9534.84,0.00024581,2]
[317481766,1709823037282,-1132.02818726,0.00024583,2]
[317481767,1709823037292,-12499.98,0.00024588,2]
[317481770,1709823037301,-1132.02818726,0.00024596,2]
[317481771,1709823037311,-13797.29012772,0.000246,3]
[317481773,1709823037321,-10995.68,0.00024601,2]
[317481776,1709823037330,-1132.02818726,0.00024609,2]
[317481777,1709823037339,-1132.02818726,0.00024623,2]
[317481779,1709823037349,-1771.40506744,0.0002463,2]
[317481781,1709823037359,-8242.71882646,0.0002463,2]
[317481783,1709823037369,-1132.02818726,0.00024636,2]
[317481785,1709823037379,-1132.02818726,0.00024649,2]
[317481787,1709823037388,-1605.3304544,0.00024655,2]
[317481789,1709823037398,-193.10919689,0.00024655,2]
[317481791,1709823037407,-155.82570647,0.00024655,2]
[317481793,1709823037416,-365.28955153,0.00024655,2]
[317481795,1709823037425,-155.28862559,0.00024655,2]
[317481797,1709823037437,-557.91222225,0.00024655,2]
[317481799,1709823037448,-1532.54562291,0.00024655,2]
[317481801,1709823037457,-527.13835701,0.00024655,2]
[317481803,1709823037467,-1082.9643418,0.00024655,2]
[317481805,1709823037476,-20490.31178222,0.00024655,2]
[317481807,1709823037485,-1170.75169083,0.00024655,3]
[317481809,1709823037494,-155.01705188,0.00024655,2]
[317481812,1709823037505,-155.01705188,0.00024655,2]
[317481813,1709823037514,-591.56425062,0.00024656,2]
[317481815,1709823037523,-1391.2056662,0.00024656,2]
[317481817,1709823037533,-160.0,0.00024656,2]
[317481819,1709823037542,-160.0,0.00024656,2]
[317481821,1709823037551,-500.0,0.00024657,2]
[317481823,1709823037560,-500.0,0.00024657,2]
[317481825,1709823037569,-500.0,0.00024657,2]
[317481827,1709823037578,-500.0,0.00024657,2]
[317481829,1709823037587,-500.0,0.00024657,2]
[317481831,1709823037597,-500.0,0.00024657,2]
[317481834,1709823037606,-500.0,0.00024657,2]
[317481835,1709823037615,-162.93125694,0.00024657,2]
[317481837,1709823037625,-371.60163455,0.00024657,2]
[317481839,1709823037634,-500.0,0.00024657,2]
[317481841,1709823037643,-500.0,0.00024657,2]
[317481843,1709823037653,-500.0,0.00024657,2]
[317481845,1709823037662,-585.03189378,0.00024657,2]
[317481847,1709823037671,-500.0,0.00024657,2]
[317481849,1709823037679,-500.0,0.00024657,2]
[317481850,1709823037692,-500.0,0.00024657,2]
[317481853,1709823037702,-500.0,0.00024657,2]
[317481854,1709823037711,-500.0,0.00024657,2]
[317481856,1709823037721,-500.0,0.00024657,2]
[317481858,1709823037730,-500.0,0.00024657,2]
[317481860,1709823037739,-500.0,0.00024657,2]
[317481862,1709823037748,-500.0,0.00024657,2]
[317481864,1709823037758,-500.0,0.00024657,2]
[317481866,1709823037768,-500.0,0.00024657,2]
[317481868,1709823037776,-500.0,0.00024657,2]
[317481870,1709823037787,-500.0,0.00024657,2]
[317481872,1709823037797,-500.0,0.00024657,2]
[317481874,1709823037807,-500.0,0.00024657,2]
[317481876,1709823037816,-500.0,0.00024657,2]
[317481878,1709823037826,-500.0,0.00024657,2]
[317481880,1709823037835,-500.0,0.00024657,2]
[317481882,1709823037849,-500.0,0.00024657,2]
[317481884,1709823037858,-500.0,0.00024657,2]
[317481886,1709823037868,-500.67366981,0.00024657,2]
[317481888,1709823037877,-204.9,0.00024657,2]
[317481890,1709823037887,-204.9,0.00024657,2]
[317481892,1709823037897,-204.9,0.00024657,2]
[317481894,1709823037906,-204.9,0.00024657,2]
[317481896,1709823037915,-204.9,0.00024657,2]
[317481898,1709823037924,-204.9,0.00024657,2]
[317481900,1709823037933,-204.9,0.00024657,2]
[317481902,1709823037946,-204.9,0.00024657,2]
[317481904,1709823037955,-204.9,0.00024657,2]
[317481906,1709823037964,-204.9,0.00024657,2]
[317481907,1709823037974,-204.9,0.00024657,2]
[317481910,1709823037984,-204.9,0.00024657,2]
[317481925,1709823038050,-204.9,0.00024657,2]
[317481927,1709823038069,-204.9,0.00024657,2]
[317481929,1709823038078,-204.9,0.00024657,2]
[317481931,1709823038088,-204.9,0.00024657,2]
[317481933,1709823038097,-204.9,0.00024657,2]
[317481936,1709823038106,-204.9,0.00024657,2]
[317481938,1709823038116,-204.9,0.00024657,2]
[317481939,1709823038125,-204.9,0.00024657,2]
[317481940,1709823038134,-517.98968424,0.00024657,2]
[317481941,1709823038142,-151.0,0.00024657,2]
[317481942,1709823038150,-151.0,0.00024657,2]
[317481943,1709823038159,-500.0,0.00024657,2]
[317481944,1709823038168,-151.0,0.00024657,2]
[317481945,1709823038176,-505.03690314,0.00024657,2]
[317481947,1709823038185,-151.0,0.00024657,2]
[317481949,1709823038196,-151.0,0.00024657,2]
[317481951,1709823038204,-151.0,0.00024657,2]
[317481952,1709823038214,-151.0,0.00024657,2]
[317481954,1709823038222,-151.0,0.00024657,2]
[317481956,1709823038231,-299.670425,0.00024657,2]
[317481958,1709823038240,-500.0,0.00024657,2]
[317481959,1709823038248,-500.0,0.00024657,2]
[317481960,1709823038257,-500.0,0.00024657,2]
[317481961,1709823038267,-500.0,0.00024657,2]
[317481962,1709823038276,-500.0,0.00024657,2]
[317481963,1709823038286,-500.0,0.00024657,2]
[317481964,1709823038295,-500.0,0.00024657,2]
[317481965,1709823038304,-500.0,0.00024657,2]
[317481966,1709823038313,-500.0,0.00024657,2]
[317481967,1709823038321,-500.0,0.00024657,2]
[317481968,1709823038330,-500.0,0.00024657,2]
[317481969,1709823038339,-501.77204875,0.00024657,2]
[317481970,1709823038348,-500.0,0.00024657,2]
[317481971,1709823038357,-500.0,0.00024657,2]
[317481972,1709823038365,-500.0,0.00024657,2]
[317481973,1709823038374,-500.0,0.00024657,2]
[317481974,1709823038383,-500.0,0.00024657,2]
[317481975,1709823038392,-160.46745028,0.00024657,2]
[317481976,1709823038401,-500.0,0.00024657,2]
[317481977,1709823038409,-304.29307897,0.00024657,2]
[317481978,1709823038418,-534.47743289,0.00024657,2]
[317481979,1709823038427,-492.40876742,0.00024657,2]
[317481980,1709823038437,-500.0,0.00024657,2]
[317481981,1709823038447,-500.0,0.00024657,2]
[317481983,1709823038456,-500.0,0.00024657,2]
[317481985,1709823038465,-500.0,0.00024657,2]
[317481987,1709823038474,-500.0,0.00024657,2]
[317481989,1709823038484,-500.0,0.00024657,2]
[317481991,1709823038494,-500.0,0.00024657,2]
[317481994,1709823038503,-500.0,0.00024657,2]
[317481995,1709823038513,-288.47603567,0.00024657,2]
[317481997,1709823038522,-500.0,0.00024657,2]
[317481999,1709823038532,-502.14854584,0.00024657,2]
[317482001,1709823038541,-500.0,0.00024657,2]
[317482004,1709823038551,-500.0,0.00024657,2]
[317482006,1709823038560,-500.0,0.00024657,2]
[317482008,1709823038568,-507.61123543,0.00024657,2]
[317482009,1709823038577,-500.0,0.00024657,2]
[317482011,1709823038586,-500.0,0.00024657,2]
[317482013,1709823038595,-500.0,0.00024657,2]
[317482015,1709823038604,-500.0,0.00024657,2]
[317482017,1709823038613,-500.0,0.00024657,2]
[317482019,1709823038622,-500.0,0.00024657,2]
[317482021,1709823038631,-500.0,0.00024657,2]
[317482023,1709823038640,-500.0,0.00024657,2]
[317482025,1709823038650,-500.0,0.00024657,2]
[317482027,1709823038659,-500.0,0.00024657,2]
[317482029,1709823038668,-500.0,0.00024657,2]
[317482031,1709823038677,-500.0,0.00024657,2]
[317482033,1709823038689,-500.0,0.00024657,2]
[317482035,1709823038699,-324.56180903,0.00024657,2]
[317482037,1709823038709,-233.20125063,0.00024657,2]
[317482039,1709823038718,-500.0,0.00024657,2]
[317482041,1709823038728,-500.0,0.00024657,2]
[317482044,1709823038737,-229.86249849,0.00024657,2]
[317482047,1709823038746,-1383.33,0.00024657,2]
[317482050,1709823038755,-1383.33,0.00024657,2]
[317482053,1709823038765,-1383.33,0.00024657,2]
[317482056,1709823038773,-1383.33,0.00024657,2]
[317482058,1709823038783,-1383.33,0.00024657,2]
[317482060,1709823038791,-1383.33,0.00024657,2]
[317482062,1709823038801,-1383.33,0.00024657,2]
[317482064,1709823038810,-1383.33,0.00024657,2]
[317482066,1709823038821,-1383.33,0.00024657,2]
[317482068,1709823038830,-1383.33,0.00024657,2]
[317482070,1709823038840,-1383.33,0.00024657,2]
[317482072,1709823038851,-1383.33,0.00024657,2]
[317482074,1709823038860,-1383.33,0.00024657,2]
[317482076,1709823038873,-1383.33,0.00024657,2]
[317482078,1709823038882,-1383.33,0.00024657,2]
[317482079,1709823038891,-1383.33,0.00024657,2]
[317482082,1709823038901,-1383.33,0.00024657,2]
[317482084,1709823038910,-1383.33,0.00024657,2]
[317482085,1709823038920,-1383.33,0.00024657,2]
[317482087,1709823038930,-1383.33,0.00024657,2]
[317482090,1709823038942,-1383.33,0.00024657,2]
[317482091,1709823038952,-1383.33,0.00024657,2]
[317482093,1709823038961,-1383.33,0.00024657,2]
[317482095,1709823038971,-1383.49156257,0.00024657,2]
[317482097,1709823038980,-500.0,0.00024657,2]
[317482099,1709823038989,-500.0,0.00024657,2]
[317482101,1709823038998,-350.87081388,0.00024657,2]
[317482102,1709823039007,-500.0,0.00024657,2]
[317482104,1709823039016,-215.89803219,0.00024657,2]
[317482106,1709823039026,-501.15567065,0.00024657,2]
[317482108,1709823039035,-286.18681186,0.00024657,2]
[317482110,1709823039045,-500.0,0.00024657,2]
[317482112,1709823039054,-500.0,0.00024657,2]
[317482114,1709823039063,-500.0,0.00024657,2]
[317482116,1709823039072,-500.0,0.00024657,2]
[317482118,1709823039082,-500.0,0.00024657,2]
[317482120,1709823039091,-500.0,0.00024657,2]
[317482122,1709823039100,-500.0,0.00024657,2]
[317482124,1709823039110,-500.0,0.00024657,2]
[317482126,1709823039119,-500.0,0.00024657,2]
[317482128,1709823039128,-500.0,0.00024657,2]
[317482130,1709823039137,-500.0,0.00024657,2]
[317482131,1709823039146,-500.0,0.00024657,2]
[317482133,1709823039156,-500.0,0.00024657,2]
[317482135,1709823039164,-500.0,0.00024657,2]
[317482137,1709823039173,-500.0,0.00024657,2]
[317482139,1709823039183,-500.0,0.00024657,2]
[317482141,1709823039197,-580.11711704,0.00024657,2]
[317482143,1709823039206,-360.46366511,0.00024657,2]
[317482145,1709823039215,-181.0165528,0.00024657,2]
[317482147,1709823039224,-500.0,0.00024657,2]
[317482149,1709823039234,-500.0,0.00024657,2]
[317482151,1709823039243,-500.0,0.00024657,2]
[317482153,1709823039252,-500.0,0.00024657,2]
[317482155,1709823039263,-500.0,0.00024657,2]
[317482157,1709823039273,-500.0,0.00024657,2]
[317482159,1709823039283,-500.0,0.00024657,2]
[317482161,1709823039293,-500.0,0.00024657,2]
[317482163,1709823039303,-500.0,0.00024657,2]
[317482165,1709823039312,-534.46942167,0.00024657,2]
[317482167,1709823039322,-500.0,0.00024657,2]
[317482168,1709823039331,-540.92142864,0.00024657,2]
[317482170,1709823039341,-500.0,0.00024657,2]
[317482180,1709823039416,-500.0,0.00024657,2]
[317482182,1709823039425,-363.48285335,0.00024657,2]
[317482184,1709823039435,-644.66114804,0.00024657,2]
[317482185,1709823039452,-500.56517077,0.00024657,2]
[317482187,1709823039462,-500.89095267,0.00024657,2]
[317482189,1709823039472,-1145.54,0.00024657,2]
[317482191,1709823039481,-1145.54,0.00024657,2]
[317482193,1709823039490,-500.0,0.00024657,2]
[317482195,1709823039499,-1145.54,0.00024657,2]
[317482197,1709823039509,-1145.54,0.00024657,2]
[317482199,1709823039518,-1145.54,0.00024657,2]
[317482201,1709823039527,-500.0,0.00024657,2]
[317482203,1709823039538,-1145.54,0.00024657,2]
[317482205,1709823039548,-1145.54,0.00024657,2]
[317482207,1709823039557,-500.0,0.00024657,2]
[317482209,1709823039567,-1145.54,0.00024657,2]
[317482211,1709823039576,-500.0,0.00024657,2]
[317482213,1709823039586,-1145.54,0.00024657,2]
[317482215,1709823039595,-1145.54,0.00024657,2]
[317482217,1709823039604,-500.0,0.00024657,2]
[317482219,1709823039613,-1145.54,0.00024657,2]
[317482221,1709823039622,-500.0,0.00024657,2]
[317482223,1709823039631,-1145.54,0.00024657,2]
[317482225,1709823039640,-500.0,0.00024657,2]
[317482227,1709823039649,-1145.54,0.00024657,2]
[317482229,1709823039658,-500.0,0.00024657,2]
[317482231,1709823039667,-1145.54,0.00024657,2]
[317482233,1709823039677,-500.0,0.00024657,2]
[317482235,1709823039688,-1145.54,0.00024657,2]
[317482237,1709823039700,-1145.54,0.00024657,2]
[317482238,1709823039709,-500.0,0.00024657,2]
[317482240,1709823039719,-1145.54,0.00024657,2]
[317482242,1709823039729,-500.0,0.00024657,2]
[317482244,1709823039738,-1145.54,0.00024657,2]
[317482246,1709823039747,-500.0,0.00024657,2]
[317482248,1709823039756,-1145.54,0.00024657,2]
[317482250,1709823039765,-296.68100192,0.00024657,2]
[317482252,1709823039774,-1145.54,0.00024657,2]
[317482254,1709823039783,-1145.54,0.00024657,2]
[317482256,1709823039792,-1145.54,0.00024657,2]
[317482258,1709823039802,-1145.54,0.00024657,2]
[317482260,1709823039811,-1145.721549,0.00024657,2]
[317482261,1709823039820,-501.75097585,0.00024657,2]
[317482263,1709823039830,-500.0,0.00024657,2]
[317482265,1709823039839,-500.0,0.00024657,2]
[317482267,1709823039849,-500.0,0.00024657,2]
[317482269,1709823039858,-263.11975335,0.00024657,2]
[317482271,1709823039871,-236.27694669,0.00024657,2]
[317482273,1709823039880,-500.0,0.00024657,2]
[317482275,1709823039890,-500.0,0.00024657,2]
[317482277,1709823039899,-500.0,0.00024657,2]
[317482279,1709823039908,-500.0,0.00024657,2]
[317482281,1709823039917,-500.0,0.00024657,2]
[317482283,1709823039927,-500.0,0.00024657,2]
[317482285,1709823039940,-500.0,0.00024657,2]
[317482287,1709823039949,-550.82923202,0.00024657,2]
[317482289,1709823039958,-500.0,0.00024657,2]
[317482291,1709823039967,-500.0,0.00024657,2]
[317482293,1709823039976,-500.0,0.00024657,2]
[317482295,1709823039984,-500.0,0.00024657,2]
[317482297,1709823039993,-526.77125449,0.00024657,2]
[317482299,1709823040003,-500.0,0.00024657,2]
[317482301,1709823040012,-500.0,0.00024657,2]
[317482303,1709823040021,-500.0,0.00024657,2]
[317482305,1709823040030,-500.0,0.00024657,2]
[317482307,1709823040040,-151.0,0.00024657,2]
[317482308,1709823040050,-500.0,0.00024657,2]
[317482310,1709823040059,-500.0,0.00024657,2]
[317482312,1709823040068,-151.0,0.00024657,2]
[317482314,1709823040077,-500.0,0.00024657,2]
[317482316,1709823040086,-500.0,0.00024657,2]
[317482318,1709823040095,-500.0,0.00024657,2]
[317482320,1709823040104,-596.10988412,0.00024657,2]